bitfinex-derivatives/quotes_ETHF0:USTF0_20251204
["timestamp","ask_amount","ask_price","bid_price","bid_amount"]
[1764886741244,7.35663728,3138.7,3138.6,1.31586947]
[1764886741441,7.35663728,3138.7,3138.6,0.00346947]
[1764886742953,7.35663728,3138.7,3138.2,0.15927]
[1764886742954,3.3575,3138.0,3137.9,5.7836]
[1764886743143,4.88121204,3138.0,3137.9,3.2078]
[1764886743346,2.6226,3137.6,3137.5,4.5202]
[1764886743846,2.6226,3137.6,3137.5,4.52350036]
[1764886744046,2.6226,3137.6,3137.5,1.31570036]
[1764886744248,2.6226,3137.6,3137.5,0.00330036]
[1764886748449,2.5851,3137.3,3137.2,0.00477989]
[1764886748754,15.1581,3137.3,3137.2,0.00477989]
[1764886749357,15.1581,3137.3,3137.2,1.25827989]
[1764886749556,5.7929,3137.8,3137.7,2.5447]
[1764886749854,3.2078,3137.8,3137.7,2.5447]
[1764886750459,3.2078,3137.8,3137.7,2.704]
[1764886750653,12.573,3138.0,3137.9,2.5447]
[1764886750852,15.9105,3138.0,3137.9,2.5447]
[1764886751256,13.8746,3138.0,3137.9,2.5447]
[1764886751862,15.1581,3138.0,3137.9,2.5447]
[1764886752062,15.9105,3138.0,3137.9,2.5447]
[1764886753161,13.8746,3138.0,3137.9,2.5447]
[1764886753350,2.5851,3138.5,3138.4,1.2912]
[1764886753553,2.5851,3138.5,3138.4,2.5447]
[1764886754059,43.3851,3138.5,3138.4,2.5447]
[1764886754563,1.3016,3138.5,3138.4,2.5447]
[1764886754764,13.8746,3138.6,3138.5,2.5447]
[1764886754964,15.1581,3138.6,3138.5,2.5447]
[1764886755957,13.8746,3138.6,3138.5,2.5447]
[1764886757468,1.3016,3138.6,3138.5,2.5447]
[1764886757667,2.5851,3138.6,3138.5,2.5447]
[1764886758767,1.3016,3138.6,3138.5,2.5447]
[1764886762373,2.5851,3138.6,3138.5,2.5447]
[1764886764173,0.00252524,3138.7,3138.6,2.70396]
[1764886764473,3.9602,3139.5,3138.6,2.70396]
[1764886764474,3.3375,3139.5,3139.4,1.2535]
[1764886764777,2.5851,3139.8,3139.7,1.4127]
[1764886765173,3.3375,3140.0,3139.9,2.5447]
[1764886765477,2.5851,3139.9,3139.8,2.7039]
[1764886765673,43.3851,3139.9,3139.8,2.7039]
[1764886766270,43.3851,3139.9,3139.8,1.4127]
[1764886766672,43.3851,3139.9,3139.8,2.7039]
[1764886767272,43.3851,3139.9,3139.8,1.4127]
[1764886767475,2.5851,3139.7,3139.6,3.21257989]
[1764886767975,2.5851,3139.7,3139.6,4.46607989]
[1764886770286,2.5851,3139.7,3139.6,0.00477989]
[1764886770666,4.10651906,3139.7,3139.6,0.00477989]
[1764886771075,2.5851,3139.3,3139.2,0.00307346]
[1764886771374,15.1671,3139.3,3139.2,0.00307346]
[1764886772075,2.5851,3138.8,3138.7,3.2078]
[1764886772280,2.5851,3138.8,3138.7,4.4613]
[1764886773173,2.5851,3138.8,3138.7,4.46484182]
[1764886773980,2.5851,3138.8,3138.7,5.75604182]
[1764886775672,5.5436,3139.3,3139.2,2.3914]
[1764886775979,18.1246,3139.3,3139.2,2.3914]
[1764886776379,3.2078,3139.3,3139.2,2.55063]
[1764886777079,14.9188,3139.6,3139.5,2.3914]
[1764886777278,2.3358,3139.6,3139.5,2.3914]
[1764886777578,4.3952,3139.7,3139.6,2.55061]
[1764886777977,1.1874,3139.7,3139.6,2.55061]
[1764886779779,2.33909812,3140.0,3139.9,2.3914]
[1764886780077,3.00759812,3140.0,3139.9,2.3914]
[1764886780473,0.00329812,3140.0,3139.9,2.3914]
[1764886780674,1.14261059,3141.1,3139.9,2.3914]
[1764886780675,1.1874,3141.1,3140.5,1.7342]
[1764886780879,2.3358,3141.0,3140.9,5.5992]
[1764886781274,3.0043,3141.0,3140.9,4.3615]
[1764886781477,3.0043,3141.0,3140.9,3.2078]
[1764886781684,3.00833263,3141.0,3140.9,0.00335303]
[1764886782783,3.00833263,3141.0,3140.9,1.15705303]
[1764886783082,0.00403263,3141.0,3140.9,2.39475303]
[1764886783382,1.23363263,3141.0,3140.9,5.60255303]
[1764886783774,0.00403263,3141.0,3140.9,5.60255303]
[1764886784179,2.49463263,3141.0,3140.9,5.60255303]
[1764886784487,3.24613263,3141.0,3140.9,5.60255303]
[1764886784780,3.24613263,3141.0,3140.9,4.36485303]
[1764886785576,3.24613263,3141.0,3140.9,5.57355303]
[1764886786583,3.24613263,3141.0,3140.9,4.36485303]
[1764886786881,3.24613263,3141.0,3140.9,3.21115303]
[1764886790289,3.24613263,3141.0,3140.9,0.00335303]
[1764886790490,0.00403263,3141.0,3140.9,2.44215303]
[1764886790701,13.82963263,3141.0,3140.9,5.64995303]
[1764886790889,12.60103263,3141.0,3140.9,5.80909303]
[1764886791592,0.00403263,3141.0,3140.9,5.80909303]
[1764886798301,3.1591,3142.0,3141.9,2.4388]
[1764886798490,10.4681,3142.0,3141.9,1.2301]
[1764886798692,3.2078,3142.1,3142.0,2.4388]
[1764886798888,4.4374,3142.1,3142.0,2.4388]
[1764886799396,2.4906,3142.2,3142.1,0.15908]
[1764886799596,2.4906,3142.2,3142.1,1.38918]
[1764886799802,0.00317028,3142.2,3142.1,2.59788]
[1764886799992,2.49377028,3142.2,3142.1,2.59788]
[1764886800200,2.4906,3141.9,3141.8,5.6466]
[1764886800398,2.4906,3141.9,3141.8,3.2078]
[1764886800701,3.2421,3141.5,3141.4,3.2078]
[1764886802295,50.7891,3141.5,3141.4,3.2078]
[1764886802495,50.7891,3141.5,3141.4,3.22421162]
[1764886802898,50.7891,3141.5,3141.4,0.01641162]
[1764886803896,50.7891,3141.5,3141.4,1.24651162]
[1764886804197,50.7891,3141.5,3141.4,0.01641162]
[1764886805206,51.63317699,3141.5,3141.4,0.01641162]
[1764886805701,42.39557699,3141.5,3141.4,1.23001162]
[1764886805907,42.39557699,3141.5,3141.4,2.45281162]
[1764886807810,42.39557699,3141.5,3141.4,1.23001162]
[1764886808502,42.39557699,3141.5,3141.4,2.45281162]
[1764886808707,3.97927699,3141.5,3141.4,0.17552162]
[1764886809005,3.97927699,3141.5,3141.4,1.38912162]
[1764886810003,3.97927699,3141.5,3141.4,2.61192162]
[1764886810308,3.97927699,3141.5,3141.4,0.17552162]
[1764886812803,3.97927699,3141.5,3141.4,0.01641162]
[1764886813708,2.3837,3141.2,3141.1,3.2078]
[1764886814011,15.81377699,3141.2,3141.1,3.2078]
[1764886814612,3.0733,3141.0,3140.9,0.00335303]
[1764886814912,2.3837,3140.7,3140.6,3.21257989]
[1764886815114,15.81577699,3140.7,3140.6,3.21257989]
[1764886815511,56.61577699,3140.7,3140.6,3.21257989]
[1764886815710,2.3837,3140.4,3140.3,3.2078]
[1764886815910,2.3837,3140.4,3140.3,3.21168928]
[1764886817308,2.3837,3140.4,3140.3,0.00388928]
[1764886817309,3.2302646,3140.4,3140.3,0.00388928]
[1764886820909,15.8182646,3140.4,3140.3,0.00388928]
[1764886822120,2.3837,3140.1,3140.0,0.00477989]
[1764886822318,14.9707,3140.1,3140.0,0.00477989]
[1764886823118,14.9707,3140.1,3140.0,0.00890493]
[1764886824920,2.3837,3139.1,3139.0,4.4214]
[1764886825220,12.587,3139.3,3139.2,2.4364]
[1764886825420,14.9707,3139.3,3139.2,2.4364]
[1764886825816,14.9707,3139.3,3139.2,1.2136]
[1764886826131,2.3837,3139.1,3139.0,4.58063]
[1764886826527,2.3837,3139.1,3139.0,5.80687163]
[1764886827118,2.3837,3139.1,3139.0,4.58407163]
[1764886827318,14.9807,3139.1,3139.0,4.58407163]
[1764886827829,1.8394,3139.5,3139.4,1.2228]
[1764886828030,3.0733,3139.5,3139.4,2.4364]
[1764886828919,3.07560581,3139.5,3139.4,2.4364]
[1764886830423,4.3576,3140.2,3140.1,1.2136]
[1764886830631,5.5915,3140.2,3139.5,0.6664]
[1764886831523,5.59410277,3140.2,3139.7,0.1592]
[1764886831828,5.59410277,3140.2,3140.1,1.2136]
[1764886832427,4.36020277,3140.2,3140.1,2.4364]
[1764886832619,5.59410277,3140.2,3140.1,2.4364]
[1764886833528,5.59410277,3140.2,3140.1,1.2136]
[1764886834227,5.59410277,3140.2,3140.1,2.4364]
[1764886834432,4.36020277,3140.2,3140.1,2.4364]
[1764886834724,5.52870277,3140.2,3140.1,2.4364]
[1764886835726,5.52870277,3140.2,3140.1,1.2136]
[1764886837416,2.2757,3140.1,3140.0,1.32968]
[1764886837823,3.21040277,3140.2,3140.1,2.2515]
[1764886838022,4.31760277,3140.2,3140.1,2.2515]
[1764886838231,0.00260277,3140.2,3140.1,2.41068]
[1764886844229,1.10980277,3140.2,3140.1,2.41068]
[1764886844833,2.27640277,3140.2,3140.1,2.41068]
[1764886845533,1.10980277,3140.2,3140.1,2.41068]
[1764886847437,2.27640277,3140.2,3140.1,0.15918]
[1764886847737,2.27640277,3140.2,3140.1,1.32548]
[1764886850742,2.27640277,3140.2,3140.1,2.42068]
[1764886851143,2.27640277,3140.2,3140.1,1.32548]
[1764886851643,2.27640277,3140.2,3140.1,2.42068]
[1764886852337,3.0747,3140.0,3139.6,0.1592]
[1764886852545,1.1958,3139.7,3139.6,2.4207]
[1764886852737,1.9081,3140.0,3139.9,1.1663]
[1764886852942,3.0747,3140.0,3139.9,2.2615]
[1764886853243,3.0747,3140.0,3139.9,1.1663]
[1764886853439,1.1958,3139.7,3139.6,2.4207]
[1764886853839,1.9081,3140.0,3139.9,1.1663]
[1764886854043,3.0747,3140.0,3139.9,2.2615]
[1764886854241,1.1958,3139.7,3139.6,2.4207]
[1764886855845,1.9081,3140.0,3139.9,1.1663]
[1764886856044,3.0747,3140.0,3139.9,1.1663]
[1764886856643,6.2825,3140.0,3139.9,1.1663]
[1764886856941,14.96200277,3140.2,3140.1,1.1663]
[1764886857146,14.96200277,3140.2,3140.1,2.2615]
[1764886858450,14.96200277,3140.2,3140.1,0.15919]
[1764886860451,17.33023183,3140.2,3140.1,0.15919]
[1764886861349,2.3624,3139.6,3139.5,1.32552]
[1764886861544,3.88361138,3139.6,3139.5,0.15922]
[1764886861750,2.3624,3139.4,3139.3,4.3741]
[1764886862443,2.3624,3139.4,3139.3,3.2078]
[1764886862637,1.1958,3139.2,3139.1,0.15925]
[1764886862844,2.3624,3139.2,3139.1,0.15925]
[1764886863053,1.52121138,3139.3,3139.0,0.00344163]
[1764886863054,2.3624,3139.1,3139.0,0.00344163]
[1764886864651,2.3624,3139.1,3139.0,0.00113582]
[1764886865243,3.20779232,3139.1,3139.0,0.00113582]
[1764886866043,2.3624,3139.1,3139.0,0.00113582]
[1764886867045,2.3624,3139.1,3139.0,1.09633582]
[1764886867252,2.3624,3139.1,3139.0,0.16038582]
[1764886873353,2.3624,3139.1,3139.0,1.25558582]
[1764886873656,2.3624,3139.1,3139.0,0.16038582]
[1764886875960,2.3624,3139.1,3139.0,0.00113582]
[1764886876169,2.9559,3138.5,3138.4,0.15928]
[1764886876367,15.5499,3138.5,3138.4,0.15928]
[1764886877068,15.5499,3138.5,3138.4,0.16155488]
[1764886878873,15.5499,3138.5,3138.4,0.00227488]
[1764886880082,15.5489,3138.5,3138.4,0.00227488]
[1764886881770,2.2886,3138.2,3138.1,0.00477989]
[1764886881975,5.4964,3138.2,3138.1,0.00477989]
[1764886882375,46.2964,3138.2,3138.1,0.00477989]
[1764886882568,3.2078,3138.6,3138.5,2.35948]
[1764886882769,5.4964,3138.6,3138.5,2.36248527]
[1764886883876,5.4964,3138.6,3138.5,0.16228527]
[1764886885773,5.4964,3138.6,3138.5,0.00300527]
[1764886886371,7.019367,3138.6,3138.5,0.00300527]
[1764886887084,2.2886,3138.2,3138.1,0.00477989]
[1764886887278,19.618367,3138.2,3138.1,0.00477989]
[1764886888071,2.2886,3137.4,3137.3,2.35954]
[1764886888278,2.2927038,3137.4,3137.3,2.35954]
[1764886888473,2.2927038,3137.4,3137.3,2.36258181]
[1764886889881,0.0041038,3137.4,3137.3,2.36258181]
[1764886891289,1.1797038,3137.4,3137.3,2.36258181]
[1764886892592,2.2927038,3137.4,3137.3,2.36258181]
[1764886893893,2.2927038,3137.4,3137.3,1.25758181]
[1764886894191,2.2927038,3137.4,3137.3,2.33398181]
[1764886894581,2.2927038,3137.4,3137.3,1.25758181]
[1764886894789,2.2927038,3137.4,3137.3,2.33348181]
[1764886895085,2.2927038,3137.4,3137.3,1.25708181]
[1764886895785,2.2927038,3137.4,3137.3,0.16238181]
[1764886898494,2.2927038,3137.4,3137.3,0.00304181]
[1764886905198,2.2927038,3137.4,3137.3,4.181e-05]
[1764886905393,1.8886,3137.1,3137.0,0.16412989]
[1764886906097,2.4265,3136.5,3136.4,3.36718]
[1764886906289,0.5379,3137.0,3136.4,3.2115718]
[1764886906602,1.8886,3136.7,3136.6,2.11657]
[1764886906903,1.8886,3136.7,3136.6,0.15937]
[1764886907594,2.4265,3136.5,3136.4,0.0037718]
[1764886908392,43.2265,3136.5,3136.4,0.0037718]
[1764886908788,2.4265,3136.5,3136.4,0.0037718]
[1764886909303,43.2265,3136.5,3136.4,0.0037718]
[1764886915405,5.0964,3136.7,3136.6,1.9572]
[1764886916005,4.106,3136.7,3136.6,1.9572]
[1764886917416,3.2078,3136.7,3136.6,2.11657]
[1764886918310,2.43127989,3137.0,3136.9,1.14636]
[1764886920814,2.43127989,3137.0,3136.9,2.11656]
[1764886922817,2.43127989,3137.0,3136.9,1.14636]
[1764886923411,2.43127989,3137.0,3136.9,0.15936]
[1764886923608,2.43127989,3137.0,3136.9,1.14636]
[1764886923809,2.43127989,3137.0,3136.9,0.15936]
[1764886924219,2.43127989,3137.0,3136.9,1.14636]
[1764886924927,2.43127989,3137.0,3136.9,0.15936]
[1764886930624,15.02427989,3137.0,3136.9,0.15936]
[1764886933129,15.02427989,3137.0,3136.9,1.13456]
[1764886934021,15.02427989,3137.0,3136.9,0.15936]
[1764886942929,1.9116,3136.6,3136.5,3.2078]
[1764886943132,1.9116,3136.6,3136.5,3.36718]
[1764886943432,1.9116,3136.6,3136.5,0.15938]
[1764886945534,2.439,3136.5,3136.4,0.0037718]
[1764886945732,1.9116,3136.4,3136.3,0.00477989]
[1764886945935,17.00640937,3136.4,3136.3,0.00477989]
[1764886946131,1.1514,3135.5,3135.4,2.8452735]
[1764886946328,4.06055328,3135.5,3135.1,1.9104]
[1764886946631,4.06055328,3135.5,3135.0,0.5405]
[1764886946632,5.1157,3135.4,3135.3,0.9752]
[1764886946936,5.6914,3135.4,3135.3,0.97883463]
[1764886947635,5.6914,3135.4,3135.3,0.00363463]
[1764886948132,0.5721,3135.0,3134.5,3.7483]
[1764886948330,13.7502,3134.9,3134.8,0.9752]
[1764886948528,3.21257989,3135.1,3135.0,2.4509]
[1764886948529,4.35677989,3135.1,3135.0,2.4509]
[1764886948737,16.38967989,3135.1,3135.0,2.4509]
[1764886949329,16.39287067,3135.1,3135.0,2.45354847]
[1764886949529,16.96497067,3135.1,3135.0,2.45354847]
[1764886950535,16.96597067,3135.1,3135.0,2.45354847]
[1764886950737,16.96597067,3135.1,3135.0,1.51834847]
[1764886950938,16.96597067,3135.1,3135.0,2.45354847]
[1764886951938,16.96597067,3135.1,3135.0,0.54314847]
[1764886952134,16.96597067,3135.1,3135.0,0.00264847]
[1764886952135,18.61794258,3135.1,3135.0,0.00264847]
[1764886955138,3.78787067,3135.1,3135.0,2.30844847]
[1764886955337,0.00797067,3135.1,3135.0,2.46790847]
[1764886958339,0.00797067,3135.1,3135.0,8.46790847]
[1764886958640,4.0029,3135.5,3135.4,1.90414]
[1764886958845,4.798,3135.5,3135.4,1.90414]
[1764886959538,4.00693845,3135.5,3135.4,1.90414]
[1764886959940,4.80203845,3135.5,3135.4,0.15944]
[1764886961046,17.41303845,3135.5,3135.4,0.15944]
[1764886961241,1.5902,3135.1,3135.0,2.30844847]
[1764886961545,4.798,3135.1,3135.0,2.30844847]
[1764886961941,4.798,3135.1,3135.0,0.16210847]
[1764886962343,6.32420841,3135.1,3135.0,0.16210847]
[1764886962549,1.5902,3134.8,3134.7,0.00477989]
[1764886963048,1.5902,3134.8,3134.7,0.89387989]
[1764886963537,1.5902,3134.8,3134.7,0.8978189]
[1764886963849,1.5902,3134.8,3134.7,0.0087189]
[1764886964045,3.11640841,3134.8,3134.7,0.0087189]
[1764886964447,1.5902,3134.8,3134.7,0.9126189]
[1764886964837,0.7951,3134.8,3134.7,1.8324189]
[1764886965039,17.234,3135.1,3135.0,1.4704]
[1764886965239,17.234,3135.1,3135.0,0.5665]
[1764886965442,1.4142,3134.8,3134.7,1.8324189]
[1764886965945,1.4142,3134.8,3134.7,0.0087189]
[1764886967555,1.4142,3134.8,3134.3,0.15949]
[1764886967556,1.3968,3134.2,3134.1,3.2078]
[1764886967854,1.3968,3134.1,3134.0,0.5665]
[1764886968246,1.3968,3134.1,3134.0,1.4704]
[1764886968653,1.3968,3134.1,3134.0,1.47305196]
[1764886969050,1.3968,3134.1,3134.0,0.56915196]
[1764886969248,1.3968,3134.1,3134.0,0.00265196]
[1764886970152,3.2078,3134.3,3134.1,0.9039]
[1764886970457,1.3968,3134.1,3134.0,1.47305196]
[1764886970656,1.3968,3134.1,3134.0,0.56915196]
[1764886970855,1.3968,3134.1,3134.0,1.47305196]
[1764886971053,1.3968,3134.1,3134.0,0.00265196]
[1764886974661,1.3968,3134.1,3134.0,1.47305196]
[1764886974856,13.3144,3134.1,3134.0,2.39285196]
[1764886975357,14.0128,3134.1,3134.0,2.39285196]
[1764886977463,14.0128,3134.1,3134.0,0.00265196]
[1764886980361,1.3968,3134.1,3134.0,2.55236196]
[1764886980662,14.0108,3134.1,3134.0,2.55236196]
[1764886982459,14.0108,3134.1,3134.0,1.63256196]
[1764886982958,14.0108,3134.1,3134.0,0.16216196]
[1764886983558,13.3124,3134.1,3134.0,2.55236196]
[1764886983962,3.2078,3134.3,3134.2,2.0457]
[1764886985962,1.8519,3134.7,3134.6,2.04568]
[1764886986357,1.4306,3135.0,3134.9,0.9324]
[1764886986663,2.3943,3135.0,3134.9,0.9324]
[1764886987961,2.3943,3135.0,3134.8,0.15947]
[1764886987962,1.8519,3134.9,3134.8,0.15947]
[1764886990662,1.8519,3134.9,3134.8,2.04567]
[1764886991067,1.8519,3134.9,3134.8,1.09187]
[1764886991561,1.8519,3134.9,3134.8,0.15947]
[1764886992865,1.8519,3134.9,3134.8,1.09187]
[1764886993365,5.0597,3135.2,3135.1,2.04565]
[1764886993568,16.7805,3135.2,3135.1,2.04565]
[1764886993866,17.6687,3135.2,3135.1,2.04565]
[1764886994468,17.6687,3135.2,3135.1,1.09185]
[1764886997069,14.4609,3135.2,3135.1,1.09185]
[1764886997269,17.6687,3135.2,3135.1,1.09185]
[1764886997658,5.0597,3135.2,3135.1,0.15945]
[1764886999773,5.0597,3135.2,3135.1,1.09185]
[1764887001475,4.1715,3135.2,3135.1,2.04565]
[1764887001671,3.2078,3135.2,3135.1,2.04565]
[1764887001876,5.0597,3135.2,3135.1,1.09185]
[1764887002065,1.8519,3135.2,3135.1,1.09185]
[1764887002471,1.8519,3135.2,3135.1,0.15945]
[1764887004076,1.8519,3135.2,3135.1,1.09185]
[1764887004678,1.8519,3135.2,3135.1,0.15945]
[1764887004875,1.8519,3135.2,3135.1,1.09185]
[1764887007873,1.8519,3135.2,3135.1,0.15945]
[1764887011673,2.03563845,3135.5,3135.4,0.15944]
[1764887014283,0.00403845,3135.5,3135.4,3.51838379]
[1764887016477,0.00477989,3135.8,3135.7,1.93632]
[1764887016478,0.83817989,3135.8,3135.7,1.93632]
[1764887016876,1.73287989,3135.8,3135.7,1.93632]
[1764887017382,1.73601029,3135.8,3135.7,1.93632]
[1764887018583,0.00791029,3135.8,3135.7,1.93632]
[1764887018886,1.73601029,3135.8,3135.7,1.93632]
[1764887020581,0.84131029,3135.8,3135.7,1.93632]
[1764887021380,0.00791029,3135.8,3135.7,1.93632]
[1764887025090,0.00791029,3135.8,3135.7,5.14412]
[1764887025279,1.809,3136.6,3136.5,1.783]
[1764887025484,1.809,3136.6,3136.5,0.871]
[1764887026082,40.8,3136.9,3136.4,0.15938]
[1764887026391,40.8,3136.9,3136.4,1.03448029]
[1764887026392,2.3778,3136.5,3136.4,1.03448029]
[1764887027388,2.3778,3136.5,3136.4,0.16348029]
[1764887031302,5.5856,3136.5,3136.4,0.16348029]
[1764887037715,5.5856,3136.5,3136.4,1.03448029]
[1764887038304,5.5856,3136.5,3136.4,0.16348029]
[1764887038815,2.3778,3136.5,3136.4,0.16348029]
[1764887042107,2.3778,3136.5,3136.0,3.2078]
[1764887042108,1.809,3136.1,3136.0,3.2078]
[1764887042409,0.9103,3136.1,3136.0,5.1502]
[1764887042609,1.809,3136.1,3136.0,5.1502]
[1764887043009,1.809,3136.1,3136.0,5.15329431]
[1764887043703,6.66832065,3136.1,3136.0,0.00309431]
[1764887043908,6.66832065,3136.1,3135.6,3.2078]
[1764887043909,1.7697,3135.7,3135.6,3.2078]
[1764887044212,2.2238,3135.5,3135.4,0.15943]
[1764887044607,1.727,3135.2,3135.1,3.2078]
[1764887044808,1.727,3135.2,3135.1,3.21013796]
[1764887046518,2.2238,3135.5,3135.4,1.7959]
[1764887046819,1.727,3135.2,3135.1,5.16548796]
[1764887047616,0.8676,3135.2,3135.1,5.16548796]
[1764887048218,1.727,3135.2,3135.1,5.16548796]
[1764887048409,0.8676,3135.2,3135.1,5.16548796]
[1764887050315,2.2238,3135.5,3135.4,1.7959]
[1764887052214,2.2238,3135.5,3135.4,0.8857]
[1764887052921,2.2238,3135.5,3135.4,1.04514]
[1764887053320,2.2238,3135.5,3135.4,1.95534]
[1764887057823,0.8676,3135.5,3135.4,1.95534]
[1764887058023,2.2238,3136.0,3135.9,1.95531]
[1764887060732,0.8676,3136.0,3135.9,1.95531]
[1764887061033,3.2078,3136.2,3135.5,0.5127]
[1764887061034,1.727,3136.2,3136.1,1.9553]
[1764887061831,0.8676,3136.2,3136.1,1.9553]
[1764887062029,1.727,3136.2,3136.1,1.9553]
[1764887065027,0.8676,3136.2,3136.1,1.9553]
[1764887065232,1.727,3136.4,3136.3,1.95529]
[1764887068535,1.727,3136.4,3136.3,1.04509]
[1764887069129,1.727,3136.4,3136.3,1.95529]
[1764887070738,1.727,3136.4,3136.3,0.15939]
[1764887070933,13.0918,3136.5,3136.4,1.04508]
[1764887071127,14.8188,3136.5,3136.4,0.15938]
[1764887075638,14.8188,3136.5,3136.4,1.04508]
[1764887075838,0.8676,3136.5,3136.4,1.85728]
[1764887076045,4.0125,3136.6,3136.5,1.84478]
[1764887076247,4.8461,3136.6,3136.5,1.84478]
[1764887076947,1.6383,3136.6,3136.5,1.84478]
[1764887077452,1.6383,3136.6,3136.5,1.03258]
[1764887077653,1.6383,3136.6,3136.5,1.84478]
[1764887082754,1.64131953,3136.9,3136.8,1.84476]
[1764887083161,1.64131953,3136.9,3136.8,1.03256]
[1764887083460,1.64131953,3136.9,3136.8,0.15936]
[1764887084862,1.64131953,3136.9,3136.8,1.66256]
[1764887085160,1.64131953,3136.9,3136.8,0.89556]
[1764887085858,1.64131953,3136.9,3136.8,0.15936]
[1764887086556,1.5462,3136.4,3136.3,3.2078]
[1764887086756,1.5462,3136.4,3136.3,3.36719]
[1764887087657,1.5462,3136.4,3136.3,4.10339]
[1764887088157,1.5462,3136.4,3136.3,3.36719]
[1764887091064,1.5462,3136.4,3136.3,0.15939]
[1764887093061,1.5462,3136.4,3136.3,0.89559]
[1764887093264,1.5462,3136.8,3136.7,1.66257]
[1764887093456,2.40999665,3136.8,3136.7,1.66257]
[1764887093965,2.40999665,3136.8,3136.7,0.89557]
[1764887095457,2.40999665,3136.8,3136.7,1.66257]
[1764887095659,0.00301953,3136.9,3136.8,1.66256]
[1764887096567,0.00301953,3136.9,3136.8,3.18676618]
[1764887099165,0.78101953,3136.9,3136.8,1.66256]
[1764887099969,0.00301953,3136.9,3136.8,1.66256]
[1764887100261,0.78101953,3136.9,3136.8,1.66256]
[1764887101271,0.00301953,3136.9,3136.8,1.66256]
[1764887102971,0.00301953,3136.9,3136.8,4.87036]
[1764887104476,0.78101953,3136.9,3136.8,4.87036]
[1764887105872,1.54831953,3136.9,3136.8,4.10336]
[1764887106478,1.54831953,3136.9,3136.8,3.36716]
[1764887106773,0.00301953,3136.9,3136.8,4.87566]
[1764887107177,4.84721059,3138.0,3137.5,1.5085]
[1764887107385,1.5068,3137.9,3137.8,1.5085]
[1764887107681,3.9473,3138.0,3137.9,1.5085]
[1764887107876,3.9473,3138.0,3137.9,1.66781]
[1764887108082,0.7395,3138.0,3137.9,1.66781]
[1764887108381,0.74191832,3138.0,3137.9,1.67045644]
[1764887108576,0.00241832,3138.0,3137.9,1.67045644]
[1764887110781,1.94061832,3138.0,3137.9,1.67045644]
[1764887111083,0.74191832,3138.0,3137.9,1.67045644]
[1764887111884,0.00241832,3138.0,3137.9,1.67045644]
[1764887112882,1.50921832,3138.0,3137.9,1.67045644]
[1764887113087,1.94061832,3138.0,3137.9,0.16195644]
[1764887113580,1.5068,3137.8,3137.7,3.2078]
[1764887113978,1.5068,3137.8,3137.7,3.9775]
[1764887114587,1.5068,3137.8,3137.7,3.98019563]
[1764887115783,1.5068,3137.8,3137.7,3.21049563]
[1764887116490,1.5068,3137.8,3137.7,0.00269563]
[1764887117486,5.1658245,3138.0,3137.6,0.00477989]
[1764887117692,3.03100618,3137.7,3137.6,0.00477989]
[1764887118586,3.03100618,3137.7,3137.6,0.00817341]
[1764887119090,3.2078,3137.4,3136.0,1.2131]
[1764887119282,3.2078,3136.1,3136.0,2.1113]
[1764887119484,3.2078,3136.1,3136.0,3.63550618]
[1764887119887,3.2078,3136.1,3136.0,2.1113]
[1764887120188,3.2078,3136.1,3136.0,2.11479083]
[1764887123689,3.2078,3136.1,3136.0,1.95539083]
[1764887125190,3.2078,3136.1,3136.0,2.11479083]
[1764887127102,0.00477989,3136.4,3136.3,1.5085]
[1764887127294,3.21257989,3136.4,3136.3,1.5085]
[1764887130096,3.21257989,3136.4,3136.3,0.7697]
[1764887130697,3.21257989,3136.4,3136.1,0.9291]
[1764887131000,5.65195073,3136.4,3136.0,0.44689083]
[1764887131306,5.65195073,3136.4,3136.0,0.00349083]
[1764887131506,40.8,3136.3,3135.5,0.60283]
[1764887131698,3.2078,3135.6,3135.5,0.60283]
[1764887132206,3.2078,3135.6,3135.5,0.4434]
[1764887132504,3.21133509,3135.6,3135.5,0.44691512]
[1764887133404,3.21133509,3135.6,3135.5,2.11484512]
[1764887133703,3.21133509,3135.6,3135.5,1.37604512]
[1764887135801,3.21133509,3135.6,3135.5,0.60634512]
[1764887137105,3.21133509,3135.6,3135.5,2.05414512]
[1764887139409,3.21133509,3135.6,3135.5,0.44691512]
[1764887140298,3.21133509,3135.6,3135.5,0.00351512]
[1764887140502,9.21133509,3135.6,3135.0,0.4434]
[1764887140704,3.2078,3135.1,3135.0,0.4434]
[1764887141609,3.2078,3135.1,3135.0,0.4474327]
[1764887144312,3.2078,3135.1,3135.0,2.0273327]
[1764887144615,3.21133509,3135.6,3135.5,2.2974]
[1764887144811,3.21133509,3135.6,3135.5,2.45683]
[1764887145412,3.69323509,3135.6,3135.5,2.45683]
[1764887146115,3.21133509,3135.6,3135.5,2.45683]
[1764887150912,4.17513509,3135.6,3135.5,2.45683]
[1764887151120,4.17513509,3135.6,3135.5,0.70713]
[1764887151510,4.17513509,3135.6,3135.5,1.60013]
[1764887153117,4.17513509,3135.6,3135.5,0.70713]
[1764887153418,4.17513509,3135.6,3135.5,1.60013]
[1764887154717,4.17513509,3135.6,3135.5,2.45683]
[1764887158524,3.21133509,3135.6,3135.5,2.45683]
[1764887159024,3.69323509,3135.6,3135.5,2.45683]
[1764887161623,3.21133509,3135.6,3135.5,2.45683]
[1764887161925,3.69323509,3135.6,3135.5,2.45683]
[1764887163025,4.17513509,3135.6,3135.5,1.60013]
[1764887163424,4.17513509,3135.6,3135.5,2.45683]
[1764887163623,3.69323509,3135.6,3135.5,2.45683]
[1764887166236,4.47943509,3135.6,3135.5,2.45683]
[1764887167645,4.47943509,3135.6,3135.5,0.70713]
[1764887167935,3.21133509,3135.6,3135.5,2.52783]
[1764887168242,3.99753509,3135.6,3135.5,2.52783]
[1764887173250,0.78973509,3135.6,3135.5,2.52783]
[1764887173742,0.00353509,3135.6,3135.5,2.52783]
[1764887175839,3.08784743,3135.8,3135.7,1.98012]
[1764887176144,0.00477989,3136.4,3136.3,1.98009]
[1764887176336,5.0024,3136.8,3136.6,0.15937]
[1764887176537,1.7946,3136.7,3136.6,1.98007]